{"text_format":"1","workbook":"xlsx","n_sheets":4,"sheets":["Prod","Avancado","ESTAT","Conf"],"not_rendered":{"charts":0,"images":0,"macros":1,"external_links":0,"defined_names":8,"comments":0,"pivot_tables":0},"unopened":[],"bounds":{"document_bytes":16777216,"sheet_cells":100000,"rows_first":2000,"rows_last":500,"rows_between":2000,"halvings":0,"cell_chars":16384,"cell_head_chars":4096},"cells_cut":0,"cells_raw":0,"read":"whole","date_system":"1900"}

{"sheet":"Prod","index":0,"n_rows":35,"n_cols":12,"rows_kept":35,"cut":false,"hidden":false,"merged":[]}
["Data","Turno","Linha","Produto","Classe","Equipamento","Descrição do problema/falha","Hora início (parada)","Hora fim (liberação)","Duração de parada","Produção Turno","Meta Produção Turno"]
["2024-06-30","Turno A (Noite)","Linha 01","Produto 10","Programada","CIP","Finalização CIP","23:00:00","23:10:00",{"$f":"IF(A2=\"\",\"\",IFERROR(((HOUR(I2-H2))*60)+MINUTE(I2-H2),\"\"))","v":10}]
["01/07/2024","Turno A (Noite)","Linha 01","Produto 10","Programada","CIP","Finalização CIP","00:00:00","00:43:00",{"$f":"IF(A3=\"\",\"\",IFERROR(((HOUR(I3-H3))*60)+MINUTE(I3-H3),\"\"))","v":43}]
["01/07/2024","Turno A (Noite)","Linha 01","Produto 10","Mecânica","Sopradora Sidel","Atuação na tubeira nº 08","03:00:00","03:30:00",30]
["01/07/2024","Turno A (Noite)","Linha 01","Produto 10","Mecânica","Sopradora Sidel","Atuação na pressão estiramento superior a 10 bar","03:30:00","03:46:00",16]
["01/07/2024","Turno A (Noite)","Linha 01","Produto 10","Operacional","Rotuladora","Limpeza do tambor","04:45:00","04:48:00",3]
["01/07/2024","Turno A (Noite)","Linha 01","Produto 10","Produção",null,null,"06:00:00","06:00:00",null,4510,5600]
["01/07/2024","Turno B (Manhã)","Linha 01","Produto 10","Produção",null,null,"14:30:00","14:30:00",null,8925,8925]
["01/07/2024","Turno C (Tarde)","Linha 01","Produto 10","Utilidades","Energia","Falta de energia eletrica","15:10:00","15:20:00",10]
["01/07/2024","Turno C (Tarde)","Linha 01","Produto 10","Mecânica","Sopradora Sidel","Pressão de estiramento fora dos limites e limpeza","15:25:00","15:47:00",22]
["01/07/2024","Turno C (Tarde)","Linha 01","Produto 10","Operacional","Transporte Aéreo","Garrafas presas","19:20:00","19:29:00"]
["01/07/2024","Turno C (Tarde)","Linha 01","Produto 10","Operacional","Rotuladora","Troca da bobina e limpeza no tambor","22:40:00","22:49:00",{"$f":"IF(A12=\"\",\"\",IFERROR(((HOUR(I12-H12))*60)+MINUTE(I12-H12),\"\"))","v":9}]
["2024-07-01","Turno C (Tarde)","Linha 01","Produto 10","Produção",null,null,"22:59:00","22:59:00",0,8050,8925]
["02/07/2024","Turno A (Noite)","Linha 01","Produto 10","Programada","CIP","Teste de integridade e cip de ozônio","00:00:00","01:08:00",68]
["02/07/2024","Turno A (Noite)","Linha 01","Produto 10","Programada","CIP","Finalização do CIP de Ozônio","01:00:00","01:08:00",8]
["02/07/2024","Turno A (Noite)","Linha 01","Produto 10","Operacional","Enchedora","Retirada de garrafas e tampas","05:45:00","06:00:00",15]
["2024-07-02","Turno A (Noite)","Linha 01","Produto 10","Produção",null,null,"06:00:00","06:00:00",0,4838,5075]
["02/07/2024","Turno B (Manhã)","Linha 01","Produto 10","Programada","Falta de Programação","Feriado","06:00:00","14:00:00",480]
["02/07/2024","Turno C (Tarde)","Linha 01","Produto 10","Programada","Falta de Programação","Feriado","14:00:00","23:00:00",540]
["02/07/2024","Turno A (Noite)","Linha 01","Produto 10","Programada","Falta de Programação","Feriado","23:00:00","23:59:00",59]
["03/07/2024","Turno A (Noite)","Linha 01","Produto 10","Programada","Falta de Programação","Feriado","00:00:00","06:00:00",360]
["03/07/2024","Turno B (Manhã)","Linha 01","Produto 10","Programada","CIP","CIP 7 etapas. Teste de integridade, cip de ozônio","06:00:00","07:30:00",90]
["03/07/2024","Turno B (Manhã)","Linha 01","Produto 10","Operacional","Enchedora","Finalização do CIP de ozonio","07:31:00","07:45:00",14]
["03/07/2024","Turno B (Manhã)","Linha 01","Produto 10","Operacional","Enchedora","Substituição da aba conica n 30","07:50:00","08:00:00",10]
["03/07/2024","Turno B (Manhã)","Linha 01","Produto 10","Mecânica","Enchedora","Ajustes no rosqueador n 05","08:15:00","08:48:00",33]
["03/07/2024","Turno B (Manhã)","Linha 01","Produto 10","Operacional","Sopradora Sidel","Ajuste no processo","09:05:00","09:10:00",5]
["03/07/2024","Turno B (Manhã)","Linha 01","Produto 10","Utilidades","Energia","Queda de energia","11:00:00","11:25:00",25]
["03/07/2024","Turno B (Manhã)","Linha 01","Produto 10","Operacional","Enchedora","Retirada de garrafas, tampas e limpeza","13:50:00","13:52:00",2]
["2024-07-03","Turno B (Manhã)","Linha 01","Produto 10","Produção",null,null,"14:30:00","14:30:00",0,4975,7350]
["03/07/2024","Turno C (Tarde)","Linha 01","Produto 10","Operacional","Sopradora Sidel","Verificação no posto n° 08","14:35:00","14:48:00",13]
["03/07/2024","Turno C (Tarde)","Linha 01","Produto 10","Operacional","Jetflow","Tampas presas","14:50:00","14:56:00",6]
["03/07/2024","Turno C (Tarde)","Linha 01","Produto 10","Mecânica","Enchedora","Ajustes nas molas dos rosqueadores 1,3,4,5 e 8","15:38:00","16:22:00",44]
["03/07/2024","Turno C (Tarde)","Linha 01","Produto 10","Operacional","Codificador","Falha na codificação. Feita limpeza","18:00:00","18:30:00",30]
["03/07/2024","Turno C (Tarde)","Linha 01","Produto 10","Operacional","Sopradora Sidel","Substituição da borracha de vedação de compesação","22:25:00","22:59:00",34]
["2024-07-03","Turno C (Tarde)","Linha 01","Produto 10","Produção",null,null,"22:59:00","22:59:00",0,7375,8925]

{"sheet":"Avancado","index":1,"n_rows":13,"n_cols":12,"rows_kept":13,"cut":false,"hidden":false,"merged":[]}
["Data","Turno","Linha","Produto","Classe","Equipamento","Descrição do problema/falha","Hora início (parada)","Hora fim (liberação)","Duração de parada","Produção Turno","Meta Produção Turno"]
["2024-06-30","Turno A (Noite)","Linha 01","Produto 10","Programada","CIP","Finalização CIP","23:00:00","23:10:00",10]
["01/07/2024","Turno A (Noite)","Linha 01","Produto 10","Programada","CIP","Finalização CIP","00:00:00","00:43:00",43]
["01/07/2024","Turno A (Noite)","Linha 01","Produto 10","Mecânica","Sopradora Sidel","Atuação na tubeira nº 08","03:00:00","03:30:00",30]
["01/07/2024","Turno A (Noite)","Linha 01","Produto 10","Mecânica","Sopradora Sidel","Atuação na pressão estiramento superior a 10 bar","03:30:00","03:46:00",16]
["01/07/2024","Turno A (Noite)","Linha 01","Produto 10","Operacional","Rotuladora","Limpeza do tambor","04:45:00","04:48:00",3]
["01/07/2024","Turno A (Noite)","Linha 01","Produto 10","Produção",null,null,"06:00:00","06:00:00",null,4510,5600]
["01/07/2024","Turno B (Manhã)","Linha 01","Produto 10","Produção",null,null,"14:30:00","14:30:00",null,8925,8925]
["01/07/2024","Turno C (Tarde)","Linha 01","Produto 10","Utilidades","Energia","Falta de energia eletrica","15:10:00","15:20:00",10]
["01/07/2024","Turno C (Tarde)","Linha 01","Produto 10","Mecânica","Sopradora Sidel","Pressão de estiramento fora dos limites e limpeza","15:25:00","15:47:00",22]
["01/07/2024","Turno C (Tarde)","Linha 01","Produto 10","Operacional","Transporte Aéreo","Garrafas presas","19:20:00","19:29:00"]
["01/07/2024","Turno C (Tarde)","Linha 01","Produto 10","Operacional","Rotuladora","Troca da bobina e limpeza no tambor","22:40:00","22:49:00",9]
["2024-07-01","Turno C (Tarde)","Linha 01","Produto 10","Produção",null,null,"22:59:00","22:59:00",0,8050,8925]

{"sheet":"ESTAT","index":2,"n_rows":5,"n_cols":2,"rows_kept":5,"cut":false,"hidden":false,"merged":[]}
["De","2024-06-30"]
["Horas - De:","23:00:00"]
["Até","2024-07-01"]
["Horas - Até:","23:00:00"]
["Turno"]

{"sheet":"Conf","index":3,"n_rows":4,"n_cols":16,"rows_kept":4,"cut":false,"hidden":false,"merged":[]}
[null,null,null,null,null,null,null,null,null,"Data","Data","Hora início (parada)","Turno","Classe","Duração de parada","Duração de parada"]
[null,null,null,null,null,null,null,null,null,{"$f":" \"=\"&DATE(YEAR(ESTAT!$B$1),MONTH(ESTAT!$B$1),DAY(ESTAT!$B$1))","v":"=45473"},null,{"$f":"\">=\" & HOUR(ESTAT!$B$2)&\":\"&MINUTE(ESTAT!$B$2)","v":">=23:0"}]
[null,null,null,null,null,null,null,null,null,{"$f":" \">=\" & DATE(YEAR(ESTAT!$B$1),MONTH(ESTAT!$B$1),DAY(ESTAT!$B$1))+1","v":">=45474"},{"$f":"\"<=\" &DATE(YEAR(ESTAT!$B$3),MONTH(ESTAT!$B$3),DAY(ESTAT!$B$3))-1","v":"<=45473"}]
[null,null,null,null,null,null,null,null,null,{"$f":"\"=\" & DATE(YEAR(ESTAT!$B$3),MONTH(ESTAT!$B$3),DAY(ESTAT!$B$3))","v":"=45474"},null,{"$f":"\"<=\" & HOUR(ESTAT!$B$4)&\":\"&MINUTE(ESTAT!$B$4)","v":"<=23:0"}]